bitfinex/quotes_BTCUSD_20241201
["timestamp","ask_amount","ask_price","bid_price","bid_amount"]
[1733089615902,0.0008646,97658.0,97654.0,0.032]
[1733089616118,0.0008646,97658.0,97654.0,0.03]
[1733089616331,0.910369,97657.0,97655.0,0.00296014]
[1733089616791,0.141706,97656.0,97654.0,0.03]
[1733089617019,0.235229,97657.0,97655.0,0.0761]
[1733089617247,0.0008646,97658.0,97655.0,0.07906014]
[1733089617475,0.132252,97656.0,97655.0,0.07906014]
[1733089617701,0.235229,97657.0,97655.0,0.07906014]
[1733089617961,0.132252,97656.0,97655.0,0.07906014]
[1733089618199,0.226001,97657.0,97655.0,0.07906014]
[1733089618433,0.226001,97657.0,97655.0,0.08106014]
[1733089618899,0.141317,97657.0,97655.0,0.08106014]
[1733089619141,0.154488,97657.0,97656.0,0.112]
[1733089619596,0.154488,97657.0,97656.0,0.11495947]
[1733089621666,0.154488,97657.0,97656.0,0.11695947]
[1733089622759,0.0008646,97658.0,97656.0,0.11695947]
[1733089623200,0.0008646,97658.0,97657.0,0.0751]
[1733089623647,0.0008646,97658.0,97657.0,0.07849734]
[1733089624357,0.0008646,97658.0,97657.0,0.16049734]
[1733089626001,0.0008646,97658.0,97657.0,0.16149734]
[1733089626235,0.00059321,97659.0,97658.0,0.01138435]
[1733089626470,0.00059321,97659.0,97658.0,0.04138435]
[1733089626720,0.00059321,97659.0,97658.0,0.04477091]
[1733089627709,0.00059321,97659.0,97658.0,0.04677091]
[1733089628454,0.00059321,97659.0,97658.0,0.05577091]
[1733089633642,0.00059321,97659.0,97658.0,0.05696459]
[1733089633867,0.00059321,97659.0,97658.0,0.05878574]
[1733089635406,0.00145761,97659.0,97658.0,0.10838574]
[1733089641422,6e-05,97666.0,97658.0,0.10838574]
[1733089641423,6e-05,97666.0,97659.0,0.03992674]
[1733089641632,0.00104056,97660.0,97659.0,0.03992674]
[1733089641852,0.00104056,97660.0,97659.0,0.04640896]
[1733089642765,0.00104056,97660.0,97659.0,0.04840896]
[1733089644154,0.00104056,97660.0,97659.0,0.05740896]
[1733089655211,0.00104056,97660.0,97659.0,0.18000896]
[1733089656555,6e-05,97666.0,97661.0,0.03]
[1733089656972,6e-05,97666.0,97663.0,0.03]
[1733089657612,6e-05,97666.0,97665.0,0.03]
[1733089658037,6e-05,97666.0,97665.0,0.03552563]
[1733089658691,6e-05,97666.0,97665.0,0.04152563]
[1733089661255,0.0009243,97666.0,97665.0,0.04152563]
[1733089661881,0.0009243,97666.0,97665.0,0.03000001]
[1733089662124,0.0009243,97666.0,97665.0,0.0360782]
[1733089662876,0.0009243,97666.0,97665.0,0.00683796]
[1733089663182,0.0009243,97666.0,97659.0,0.00513055]
[1733089663422,0.0009243,97666.0,97665.0,0.00683796]
[1733089663643,0.0009243,97666.0,97659.0,0.00513055]
[1733089663861,0.0009243,97666.0,97665.0,0.00683796]
[1733089664069,0.0009243,97666.0,97659.0,0.00513055]
[1733089664070,0.0009243,97666.0,97659.0,0.00017616]
[1733089664307,0.0009243,97666.0,97665.0,0.00683796]
[1733089664526,0.0009243,97666.0,97659.0,0.00617616]
[1733089664744,2.92808082,97666.0,97659.0,0.00617616]
[1733089664952,0.02099482,97666.0,97659.0,0.00617616]
[1733089665163,0.02099482,97666.0,97659.0,0.00017616]
[1733089665372,0.02099482,97666.0,97665.0,0.005]
[1733089665583,2.92295282,97666.0,97665.0,0.005]
[1733089665792,2.62145282,97666.0,97665.0,0.005]
[1733089666506,2.50781228,97666.0,97665.0,0.005]
[1733089666750,2.50781228,97666.0,97659.0,0.00017616]
[1733089666975,3.61158,97665.0,97659.0,0.00617616]
[1733089667399,3.61158,97665.0,97659.0,0.00017616]
[1733089667606,3.341597,97665.0,97659.0,0.00017616]
[1733089667880,3.111463,97665.0,97659.0,0.00017616]
[1733089668108,0.17272628,97666.0,97659.0,0.00017616]
[1733089668109,3.76686,97664.0,97659.0,0.00017616]
[1733089668321,2.228828,97663.0,97659.0,0.00617616]
[1733089668525,2.787498,97665.0,97659.0,0.00617616]
[1733089668734,1.867732,97664.0,97659.0,0.00617616]
[1733089669155,1.306308,97663.0,97659.0,0.00617616]
[1733089669426,1.864978,97665.0,97659.0,0.00617616]
[1733089669640,1.397174,97664.0,97659.0,0.00017616]
[1733089669870,1.412247,97665.0,97659.0,0.00017616]
[1733089670113,1.485738,97664.0,97659.0,0.00717616]
[1733089670344,1.475753,97665.0,97659.0,0.00017616]
[1733089670558,1.475753,97665.0,97659.0,0.00817616]
[1733089671007,1.475753,97665.0,97659.0,0.00017616]
[1733089671232,1.475753,97665.0,97659.0,0.00617616]
[1733089671441,1.475753,97665.0,97659.0,0.00717616]
[1733089672104,1.54823024,97665.0,97659.0,0.00717616]
[1733089672538,0.02099482,97666.0,97659.0,0.00717616]
[1733089672753,2.023268,97665.0,97659.0,0.00617616]
[1733089673198,2.023268,97665.0,97659.0,0.00717616]
[1733089673414,2.023268,97665.0,97659.0,0.00117616]
[1733089673626,2.023268,97665.0,97659.0,0.00017616]
[1733089673841,2.023268,97665.0,97659.0,0.00617616]
[1733089674060,2.023268,97665.0,97659.0,0.00190476]
[1733089674272,1.906388,97665.0,97659.0,0.00190476]
[1733089674534,1.9072523,97665.0,97659.0,0.00790476]
[1733089674752,2.22609,97664.0,97659.0,0.00890476]
[1733089675216,1.615617,97663.0,97659.0,0.00890476]
[1733089675425,2.216483,97664.0,97659.0,0.00890476]
[1733089675635,2.057867,97664.0,97659.0,0.00890476]
[1733089675883,2.068167,97664.0,97659.0,0.00790476]
[1733089676101,1.98955,97664.0,97659.0,0.00890476]
[1733089676309,2.096387,97664.0,97659.0,0.00890476]
[1733089676724,2.004933,97664.0,97659.0,0.00890476]
[1733089677206,1.230718,97663.0,97659.0,0.00290476]
[1733089677428,1.230718,97663.0,97659.0,0.00990476]
[1733089677653,1.477426,97662.0,97659.0,0.00990476]
[1733089678095,1.222318,97661.0,97659.0,0.00290476]
[1733089678325,2.09054,97664.0,97659.0,0.00290476]
[1733089678564,2.064603,97664.0,97659.0,0.00990476]
[1733089678797,1.499078,97663.0,97659.0,0.00290476]
[1733089679050,1.45855,97662.0,97659.0,0.00290476]
[1733089679264,1.909346,97664.0,97659.0,0.01090476]
[1733089679472,1.124186,97661.0,97659.0,0.01090476]
[1733089679682,1.122413,97660.0,97659.0,0.00990476]
[1733089679904,2.015376,97664.0,97659.0,0.01090476]
[1733089680113,1.854692,97664.0,97659.0,0.01090476]
[1733089680338,1.048268,97663.0,97659.0,0.00990476]
[1733089680555,1.792512,97664.0,97659.0,0.00190476]
[1733089680783,1.792512,97664.0,97659.0,0.00290476]
[1733089681010,1.792512,97664.0,97659.0,0.00990476]
[1733089681230,1.792512,97664.0,97659.0,0.00290476]
[1733089681438,0.10283146,97663.0,97659.0,0.00990476]
[1733089681650,0.433736,97663.0,97660.0,0.0477]
[1733089681857,1.036448,97664.0,97660.0,0.0477]
[1733089682091,1.051448,97664.0,97661.0,0.00694499]
[1733089682348,0.0008643,97665.0,97660.0,0.0477]
[1733089682568,0.697229,97664.0,97661.0,0.0762]
[1733089682804,0.681972,97664.0,97662.0,0.00694296]
[1733089683021,0.679459,97664.0,97661.0,0.0762]
[1733089683710,0.0008643,97665.0,97661.0,0.0762]
[1733089683920,0.587481,97664.0,97661.0,0.0772]
[1733089684166,0.57686,97664.0,97662.0,0.00694296]
[1733089684599,0.53433,97664.0,97662.0,0.00694296]
[1733089684866,0.0008643,97665.0,97662.0,0.00694296]
[1733089685062,0.53433,97664.0,97662.0,0.00694296]
[1733089685292,0.53433,97664.0,97662.0,0.00664296]
[1733089685498,0.53433,97664.0,97662.0,0.01364296]
[1733089685716,0.513824,97664.0,97663.0,0.1239]
[1733089685924,0.0008643,97665.0,97664.0,0.1239]
[1733089686385,0.0008643,97665.0,97664.0,0.1308014]
[1733089687471,0.0008643,97665.0,97664.0,0.1318014]
[1733089688391,0.0008643,97665.0,97664.0,0.1378014]
[1733089691094,0.0008643,97665.0,97664.0,0.1372014]
[1733089700498,0.0008643,97665.0,97664.0,0.1352014]
[1733089702796,0.07619437,97694.0,97665.0,0.049]
[1733089703018,4.53155021,97693.0,97665.0,0.049]
[1733089703461,4.428705,97692.0,97665.0,0.049]
[1733089703675,4.53155021,97692.0,97665.0,0.049]
[1733089703889,4.423705,97691.0,97665.0,0.049]
[1733089704157,0.10284521,97692.0,97665.0,0.05]
[1733089704158,4.423705,97690.0,97665.0,0.05]
[1733089704375,4.423705,97690.0,97665.0,0.049]
[1733089704614,4.423705,97689.0,97665.0,0.049]
[1733089704851,4.423705,97689.0,97665.0,0.05]
[1733089705064,4.423705,97688.0,97665.0,0.05]
[1733089705289,4.423705,97687.0,97665.0,0.05]
[1733089705724,4.423705,97686.0,97666.0,0.0828]
[1733089705961,4.423705,97685.0,97667.0,0.049]
[1733089706203,0.08812792,97687.0,97667.0,0.049]
[1733089706433,4.423705,97686.0,97667.0,0.049]
[1733089706730,4.423705,97685.0,97667.0,0.049]
[1733089706933,4.50209145,97684.0,97667.0,0.049]
[1733089707182,4.423705,97683.0,97667.0,0.049]
[1733089707388,4.423705,97682.0,97667.0,0.049]
[1733089707612,4.423705,97681.0,97667.0,0.049]
[1733089707825,4.423705,97680.0,97667.0,0.049]
[1733089708074,4.423705,97679.0,97667.0,0.049]
[1733089708292,4.423705,97678.0,97667.0,0.049]
[1733089708497,4.423705,97677.0,97667.0,0.049]
[1733089708715,4.423705,97676.0,97667.0,0.049]
[1733089709141,4.423705,97675.0,97667.0,0.049]
[1733089709401,4.423705,97680.0,97667.0,0.049]
[1733089709638,4.423705,97679.0,97667.0,0.049]
[1733089709865,4.423705,97678.0,97667.0,0.049]
[1733089710318,0.10283146,97680.0,97667.0,0.049]
[1733089710319,4.423705,97677.0,97667.0,0.049]
[1733089710531,4.423705,97676.0,97664.0,0.0017292]
[1733089710762,4.458605,97675.0,97664.0,0.0017292]
[1733089710974,4.423705,97674.0,97664.0,0.0017292]
[1733089711190,0.0349,97675.0,97664.0,0.0017292]
[1733089711191,4.423705,97673.0,97664.0,0.0017292]
[1733089711405,4.423705,97672.0,97664.0,0.0017292]
[1733089711619,4.171109,97671.0,97664.0,0.0017292]
[1733089711853,3.28004,97670.0,97664.0,0.0027292]
[1733089712073,2.507361,97669.0,97664.0,0.0027292]
[1733089712308,2.305266,97669.0,97664.0,0.0017292]
[1733089712508,2.594989,97668.0,97664.0,0.0017292]
[1733089712752,2.204901,97667.0,97664.0,0.0017292]
[1733089712962,4.423705,97672.0,97664.0,0.0017292]
[1733089713370,2.82983046,97671.0,97664.0,0.0017292]
[1733089713606,2.611565,97670.0,97664.0,0.0037292]
[1733089713837,1.370344,97669.0,97664.0,0.0017292]
[1733089714049,1.389305,97668.0,97664.0,0.0017292]
[1733089714259,1.067217,97667.0,97664.0,0.0047292]
[1733089714540,4.423705,97679.0,97664.0,0.0017292]
[1733089714756,4.423705,97678.0,97664.0,0.0057292]
[1733089714975,4.423705,97677.0,97664.0,0.0057292]
[1733089715200,4.423705,97676.0,97664.0,0.0017292]
[1733089715416,4.423705,97676.0,97664.0,0.0067292]
[1733089715625,4.423705,97675.0,97664.0,0.0067292]
[1733089715847,4.423705,97674.0,97664.0,0.0067292]
[1733089716063,4.423705,97673.0,97664.0,0.0067292]
[1733089716270,4.423705,97672.0,97664.0,0.0067292]
[1733089716498,0.708767,97671.0,97664.0,0.0067292]
[1733089716710,0.637167,97670.0,97664.0,0.0768292]
[1733089716924,0.584579,97669.0,97664.0,0.0768292]
[1733089717151,0.649119,97668.0,97664.0,0.0768292]
[1733089717412,4.423705,97682.0,97664.0,0.0768292]
[1733089717644,0.01,97657.0,97567.0,0.0017284]
[1733089717853,1.109047,97656.0,97631.0,0.10284521]
[1733089718070,0.01,97657.0,97631.0,0.10284521]
[1733089718288,2.149126,97656.0,97632.0,0.0016096]
[1733089718505,2.149126,97656.0,97633.0,0.10284521]
[1733089718740,2.149126,97656.0,97634.0,0.00160956]
[1733089718986,2.149126,97656.0,97635.0,0.10445491]
[1733089719704,0.01,97657.0,97635.0,0.10445491]
[1733089720128,1.493132,97656.0,97636.0,0.0070491]
[1733089720340,0.01,97657.0,97637.0,0.10284521]
[1733089720556,0.842896,97656.0,97638.0,0.00160961]
[1733089720765,0.842896,97656.0,97640.0,0.0492]
[1733089720964,0.842896,97656.0,97641.0,0.10284521]
[1733089721199,0.842896,97656.0,97644.0,0.0792]
[1733089721412,0.842896,97656.0,97646.0,0.0492]
[1733089721626,0.843896,97656.0,97647.0,0.10284521]
[1733089721812,0.001,97656.0,97648.0,0.0492]
[1733089722098,0.001,97656.0,97649.0,0.10284521]
[1733089722549,0.001,97656.0,97650.0,0.00702066]
[1733089722772,0.001,97656.0,97651.0,0.10284521]
[1733089722993,0.01,97657.0,97652.0,0.0492]
[1733089723213,1.459148,97656.0,97652.0,0.05621659]
[1733089723658,1.459148,97656.0,97652.0,0.0492]
[1733089724101,0.01,97657.0,97652.0,0.0522]
[1733089724324,1.203659,97656.0,97652.0,0.0522]
[1733089724554,0.807119,97656.0,97653.0,0.00568665]
[1733089724816,0.01,97657.0,97654.0,0.0792]
[1733089725046,0.01,97660.0,97655.0,0.1284]
[1733089725261,0.01,97660.0,97656.0,0.0792]
[1733089725487,0.01,97660.0,97657.0,0.0492]
[1733089725907,0.01,97660.0,97658.0,0.00567853]
[1733089726126,0.01,97660.0,97659.0,0.0492]
[1733089726545,0.01,97660.0,97659.0,0.05629613]
[1733089727372,0.011,97660.0,97659.0,0.05629613]
[1733089727661,0.01,97660.0,97659.0,0.05629613]
[1733089727873,0.011,97660.0,97659.0,0.06429613]
[1733089728082,0.011,97660.0,97659.0,0.06629613]
[1733089728289,0.011,97660.0,97659.0,0.06572173]
[1733089732172,0.011,97660.0,97659.0,0.06745033]
[1733089743471,0.0118649,97660.0,97659.0,0.06745033]
[1733089745480,0.0118649,97660.0,97659.0,0.06522296]
[1733089766397,0.0118649,97660.0,97659.0,0.06723577]
[1733089769271,0.0118649,97660.0,97659.0,0.06701827]
[1733089772045,0.0018649,97660.0,97659.0,0.25246348]
[1733089773412,0.0018649,97660.0,97659.0,0.25046348]
[1733089773705,0.0018649,97660.0,97659.0,0.24446348]
[1733089773941,0.0008649,97660.0,97659.0,0.24446348]
[1733089774153,0.0008649,97660.0,97659.0,0.24246348]
[1733089774596,0.0008649,97660.0,97659.0,0.24946348]
[1733089775032,0.0008649,97660.0,97659.0,0.25846348]
[1733089775932,0.0008649,97660.0,97659.0,0.14667333]
[1733089777930,0.0008649,97660.0,97659.0,0.14840253]
[1733089778833,0.0008649,97660.0,97659.0,0.19480253]
[1733089779481,0.00017782,97682.0,97660.0,0.1246]
[1733089779694,0.00017782,97682.0,97673.0,0.1246]
[1733089779910,0.00017782,97682.0,97675.0,0.1246]
[1733089780122,0.00017782,97682.0,97677.0,0.0463]
[1733089780338,0.00017782,97682.0,97680.0,0.0783]
[1733089780581,0.00017782,97682.0,97681.0,0.15075274]
[1733089780794,0.00017782,97682.0,97681.0,0.23498793]
[1733089781025,0.00017782,97682.0,97681.0,0.2333804]
[1733089782414,0.00017782,97682.0,97681.0,0.2423804]
[1733089782692,0.00017782,97682.0,97681.0,0.2333804]
[1733089783127,0.00017782,97682.0,97681.0,0.2423804]
[1733089783355,0.00017782,97682.0,97681.0,0.2503804]
[1733089783809,0.00017782,97682.0,97681.0,0.2423804]
[1733089784234,0.00017782,97682.0,97681.0,0.2513804]
[1733089784697,0.00017782,97682.0,97681.0,0.2423804]
[1733089784902,0.00017782,97682.0,97681.0,0.2513804]
[1733089785426,0.00017782,97682.0,97681.0,0.2423804]
[1733089786044,0.00017782,97682.0,97681.0,0.2513804]
[1733089786496,0.00017782,97682.0,97681.0,0.2333804]
[1733089786918,0.00017782,97682.0,97681.0,0.2423804]
[1733089787339,0.00017782,97682.0,97681.0,0.2333804]
[1733089787752,0.00017782,97682.0,97681.0,0.2513804]
[1733089789676,0.00104242,97682.0,97681.0,0.2513804]
[1733089792887,0.0008646,97687.0,97681.0,0.2513804]
[1733089793148,0.0008646,97687.0,97686.0,0.23004521]
[1733089793620,0.0008646,97687.0,97686.0,0.23590211]
[1733089795179,0.0008646,97687.0,97686.0,0.24490211]
[1733089795611,0.0008646,97687.0,97686.0,0.23590211]
[1733089795835,0.0008646,97687.0,97686.0,0.24490211]
[1733089796041,0.0008646,97687.0,97686.0,0.25390211]
[1733089798710,0.0008646,97687.0,97686.0,0.24490211]
[1733089799381,0.0008645,97696.0,97688.0,0.0493]
[1733089799577,0.0008645,97696.0,97687.0,0.0788]
[1733089799578,0.0008645,97696.0,97693.0,0.1078]
[1733089799815,0.00027805,97723.0,97696.0,0.0519]
[1733089800064,0.0002,97749.0,97708.0,0.10284521]
[1733089800281,0.0002,97749.0,97728.0,0.10284521]
[1733089800282,0.00027801,97736.0,97728.0,0.10284521]
[1733089800544,0.00027801,97736.0,97728.0,0.18735998]
[1733089801252,0.0002,97749.0,97729.0,0.1281]
[1733089801491,0.00032145,97749.0,97748.0,0.10284521]
[1733089801726,0.00032145,97749.0,97748.0,0.108514]
[1733089802897,0.00032145,97749.0,97748.0,0.117514]
[1733089803405,0.00032145,97749.0,97748.0,0.196314]
[1733089803643,0.00032145,97749.0,97748.0,0.236614]
[1733089803863,0.00032145,97749.0,97748.0,0.243614]
[1733089804301,0.00032145,97749.0,97748.0,0.236614]
[1733089805241,0.00032145,97749.0,97748.0,0.245614]
[1733089805455,0.00032145,97749.0,97748.0,0.236614]
[1733089805662,0.00032145,97749.0,97748.0,0.245614]
[1733089805875,0.00032145,97749.0,97748.0,0.254614]
[1733089808543,0.00032145,97749.0,97748.0,0.245614]
[1733089809263,0.0008643,97763.0,97748.0,0.175814]
[1733089809500,0.0008643,97763.0,97753.0,0.18094521]
[1733089809938,0.0008643,97763.0,97753.0,0.18806182]
[1733089810896,0.0008643,97763.0,97753.0,0.19545911]
[1733089811974,0.0008643,97763.0,97753.0,0.19706213]
[1733089812210,0.0008643,97763.0,97753.0,0.18645911]
[1733089812419,0.0008643,97763.0,97753.0,0.19545911]
[1733089812635,0.0008643,97763.0,97753.0,0.20445911]
[1733089813260,0.0008643,97763.0,97753.0,0.24975911]
[1733089814304,0.0008645,97772.0,97769.0,0.5401357]
[1733089814549,0.0008645,97772.0,97771.0,0.14814521]
[1733089814777,0.0002,97809.0,97771.0,0.14814521]
[1733089814778,0.00027792,97805.0,97785.0,0.01]
[1733089814989,0.00027792,97805.0,97804.0,0.10284521]
[1733089815431,0.00027792,97805.0,97804.0,0.1075483]
[1733089815876,0.00887047,97825.0,97804.0,0.1075483]
[1733089816106,0.00887047,97825.0,97812.0,0.10284521]
[1733089816328,0.00887047,97825.0,97820.0,0.10284521]
[1733089816329,0.00946386,97825.0,97820.0,0.10284521]
[1733089816567,0.00946386,97825.0,97821.0,0.00160083]
[1733089816806,0.00946386,97825.0,97822.0,0.10444605]
[1733089817009,0.00946386,97825.0,97824.0,0.10284521]
[1733089817194,0.00946386,97825.0,97824.0,0.10444581]
[1733089817484,0.00946386,97825.0,97824.0,0.10908252]
[1733089818346,0.00946386,97825.0,97824.0,0.10748192]
[1733089818565,0.00946386,97825.0,97824.0,0.10908189]
[1733089818793,0.00946386,97825.0,97824.0,0.11808189]
[1733089819005,0.00946386,97825.0,97824.0,0.12808189]
[1733089819443,0.00946386,97825.0,97824.0,0.11908189]
[1733089820178,0.00072553,97827.0,97826.0,0.01]
[1733089820356,0.00090335,97827.0,97826.0,0.11444512]
[1733089820591,0.00090335,97827.0,97826.0,0.11918187]
[1733089820798,0.00051573,97829.0,97828.0,0.01]
[1733089821048,0.01635338,97850.0,97841.0,0.01]
[1733089821286,0.01635338,97850.0,97849.0,0.10284521]
[1733089821503,0.01635338,97850.0,97849.0,0.10444467]
[1733089821721,0.01635338,97850.0,97849.0,0.10913489]
[1733089821935,0.01635338,97850.0,97849.0,0.10753543]
[1733089822582,0.01635338,97850.0,97849.0,0.11053543]
[1733089822793,0.01635338,97850.0,97849.0,0.11953543]
[1733089823003,0.01635338,97850.0,97849.0,0.11653543]
[1733089824187,0.01635338,97850.0,97849.0,0.10753543]
[1733089824618,0.01635338,97850.0,97849.0,0.11653543]
[1733089825494,0.01635338,97850.0,97849.0,0.10753543]
[1733089825738,0.01635338,97850.0,97849.0,0.11653543]
[1733089825969,0.01635338,97850.0,97849.0,0.10753543]
[1733089827293,0.80799707,97870.0,97849.0,0.11653543]
[1733089827516,0.80299707,97870.0,97859.0,0.10284521]
[1733089827763,0.80299707,97870.0,97860.0,0.00159944]
[1733089827974,0.80299707,97870.0,97861.0,0.10444461]
[1733089828409,0.80299707,97870.0,97864.0,0.10284521]
[1733089828613,0.80299707,97870.0,97865.0,0.00159933]
[1733089828830,0.80299707,97870.0,97868.0,0.10284521]
[1733089830431,0.80299707,97870.0,97869.0,0.10284521]
[1733089831107,0.85119707,97870.0,97869.0,0.10284521]
[1733089831535,0.80299707,97870.0,97869.0,0.10284521]
[1733089831743,0.80299707,97870.0,97869.0,0.10444429]
[1733089831970,0.80299707,97870.0,97869.0,0.11444429]
[1733089832178,0.80299707,97870.0,97869.0,0.12044429]
[1733089832416,0.80299707,97870.0,97869.0,0.10444429]
[1733089832814,0.80299707,97870.0,97869.0,0.11444429]
[1733089833278,1.99932977,97888.0,97869.0,0.23584429]
[1733089833487,1.99932977,97888.0,97887.0,0.10284521]
[1733089834201,1.99932977,97888.0,97887.0,0.17824521]
[1733089834409,1.99932977,97888.0,97887.0,0.17784521]
[1733089834846,1.99932977,97888.0,97887.0,0.17843842]
[1733089835066,1.99932977,97888.0,97887.0,0.11203842]
[1733089835305,2.10518977,97888.0,97887.0,0.11203842]
[1733089835963,2.10605237,97888.0,97887.0,0.11203842]
[1733089836817,2.10605237,97888.0,97887.0,0.10303842]
[1733089837283,2.10605237,97888.0,97887.0,0.11203842]
[1733089840967,2.10605237,97888.0,97887.0,0.10303842]
[1733089841196,2.10605237,97888.0,97887.0,0.11203842]
[1733089841663,2.10605237,97888.0,97887.0,0.10303842]
[1733089841875,2.18885237,97888.0,97887.0,0.11203842]
[1733089842267,2.10605237,97888.0,97887.0,0.11203842]
[1733089843267,2.10605237,97888.0,97887.0,0.10303842]
[1733089843535,2.10605237,97888.0,97887.0,0.11203842]
[1733089843768,2.10472447,97888.0,97887.0,0.10303842]
[1733089843982,2.10472447,97888.0,97887.0,0.11203842]
[1733089844430,2.10472447,97888.0,97887.0,0.10303842]
[1733089844650,2.10472447,97888.0,97887.0,0.11203842]
[1733089844862,2.10472447,97888.0,97887.0,0.10303842]
[1733089846362,2.10472447,97888.0,97887.0,0.11203842]
[1733089846623,2.10472447,97888.0,97887.0,0.10303842]
[1733089846844,2.10472447,97888.0,97887.0,0.11203842]
[1733089847266,2.10472447,97888.0,97887.0,0.10303842]
[1733089847503,2.10472447,97888.0,97887.0,0.11203842]
[1733089849212,2.10472447,97888.0,97887.0,0.10303842]
[1733089849658,2.10472447,97888.0,97887.0,0.11203842]
[1733089849917,2.10472447,97888.0,97887.0,0.10303842]
[1733089850128,2.10472447,97888.0,97887.0,0.11203842]
[1733089850607,2.10472447,97888.0,97887.0,0.22693842]
[1733089850835,2.10472447,97888.0,97887.0,0.23593842]
[1733089851050,2.10472447,97888.0,97887.0,0.22693842]
[1733089853055,2.10472447,97888.0,97887.0,0.23593842]
[1733089853270,2.10472447,97888.0,97887.0,0.22693842]
[1733089853728,2.10472447,97888.0,97887.0,0.18763842]
[1733089853935,2.10472447,97888.0,97887.0,0.11203842]
[1733089855542,2.24682447,97888.0,97887.0,0.11203842]
[1733089856201,2.24682447,97888.0,97887.0,0.10303842]
[1733089856429,2.24682447,97888.0,97887.0,0.11203842]
[1733089856883,2.24682447,97888.0,97887.0,0.10303842]
[1733089857114,2.24682447,97888.0,97887.0,0.11203842]
[1733089857359,2.24682447,97888.0,97887.0,0.10303842]
[1733089857803,2.24682447,97888.0,97887.0,0.11203842]
[1733089858333,2.09624364,97888.0,97887.0,0.11203842]
[1733089859015,2.09624364,97888.0,97887.0,0.10303842]
[1733089859219,2.09624364,97888.0,97887.0,0.10476782]
[1733089859442,2.09624364,97888.0,97887.0,0.11376782]
[1733089859652,2.09624364,97888.0,97887.0,0.10476782]
[1733089859865,2.09624364,97888.0,97887.0,0.11376782]
[1733089860278,2.09624364,97888.0,97887.0,0.10476782]
[1733089860486,2.09624364,97888.0,97887.0,0.11376782]
[1733089860909,2.09624364,97888.0,97887.0,0.10476782]
[1733089861359,2.09624364,97888.0,97887.0,0.00232261]
[1733089862265,2.09624364,97888.0,97887.0,0.01132261]
[1733089862492,2.09624364,97888.0,97887.0,0.00232261]
[1733089862926,0.01,97870.0,97869.0,0.0117252]
[1733089863175,0.01,97870.0,97869.0,0.1151638]
[1733089863370,0.0926668,97870.0,97869.0,0.01231859]
[1733089863596,0.2237668,97870.0,97869.0,0.01231859]
[1733089864007,0.2237668,97870.0,97844.0,0.00159936]
[1733089864216,0.01,97849.0,97846.0,0.10284521]
[1733089864438,0.01,97849.0,97846.0,0.10444538]
[1733089864899,0.01,97849.0,97847.0,0.00941339]
[1733089865097,0.01,97849.0,97848.0,0.10284521]
[1733089865301,0.0926668,97849.0,97848.0,0.10284521]
[1733089865511,0.0926668,97849.0,97848.0,0.11067712]
[1733089866626,0.0936668,97849.0,97848.0,0.11867712]
[1733089866938,0.0926668,97849.0,97848.0,0.11067712]
[1733089867148,0.0836668,97849.0,97848.0,0.12027762]
[1733089867596,0.0826668,97849.0,97848.0,0.11227762]
[1733089867803,0.0826668,97849.0,97848.0,0.11067712]
[1733089868017,0.0826668,97849.0,97848.0,0.1122767]
[1733089868263,0.0826668,97849.0,97848.0,0.11067712]
[1733089868485,0.0826668,97849.0,97848.0,0.11227699]
[1733089868901,0.0826668,97849.0,97848.0,0.12127699]
[1733089869113,0.0826668,97849.0,97848.0,0.25047699]
[1733089869323,0.0826668,97849.0,97848.0,0.23987712]
[1733089869567,0.0826668,97849.0,97848.0,0.24887712]
[1733089869774,0.0826668,97849.0,97848.0,0.23987712]
[1733089870202,0.0826668,97849.0,97848.0,0.24887712]
[1733089871314,0.0826668,97849.0,97848.0,0.25060652]
[1733089877528,0.0826668,97849.0,97848.0,0.26060652]
[1733089879984,0.0826668,97849.0,97848.0,0.29206136]
[1733089881090,1.80311036,97888.0,97860.0,0.01]
[1733089881342,1.80311036,97888.0,97883.0,0.10284521]
[1733089882052,1.80311036,97888.0,97883.0,0.10184521]
[1733089882720,1.80311036,97888.0,97883.0,0.10243908]
[1733089883372,1.80311036,97888.0,97883.0,0.10843908]
[1733089888647,0.01,97884.0,97883.0,0.10843908]
[1733089888852,0.0922,97884.0,97883.0,0.10843908]
[1733089889721,0.0922,97884.0,97883.0,0.10243908]
[1733089889957,0.0922,97884.0,97883.0,0.10943908]
[1733089890173,0.0922,97884.0,97883.0,0.10243908]
[1733089890591,0.0922,97884.0,97883.0,0.10943908]
[1733089890804,0.0922,97884.0,97883.0,0.10243908]
[1733089891230,0.0922,97884.0,97883.0,0.10843908]
[1733089891708,0.0922,97884.0,97883.0,0.10243908]
[1733089893052,0.0922,97884.0,97883.0,0.10843908]
[1733089893512,0.0922,97884.0,97883.0,0.10243908]
[1733089893755,0.0930648,97884.0,97883.0,0.10843908]
[1733089895136,0.14052504,97884.0,97883.0,0.00659387]
[1733089896229,0.14052504,97884.0,97883.0,0.00059387]
[1733089896467,0.14052504,97884.0,97883.0,0.00359387]
[1733089896682,0.14052504,97884.0,97883.0,0.00059387]
[1733089897200,0.14052504,97884.0,97883.0,0.00259387]
[1733089897414,0.14052504,97884.0,97883.0,0.00059387]
[1733089897671,0.14052504,97884.0,97883.0,0.00259387]
[1733089897941,0.00158002,97885.0,97883.0,0.00059387]
[1733089898153,0.00066116,97884.0,97883.0,0.00059387]
[1733089898792,0.01,97867.0,97850.0,0.00180852]
[1733089899015,0.01,97866.0,97851.0,0.10284521]
[1733089899247,0.01,97866.0,97851.0,0.10901175]
[1733089900430,0.12430416,97865.0,97851.0,0.10901175]
[1733089900664,0.00066116,97865.0,97851.0,0.01016654]
[1733089900881,2.921095,97864.0,97851.0,0.00616654]
[1733089901120,2.45914416,97863.0,97851.0,0.00616654]
[1733089901321,2.45914416,97863.0,97850.0,0.00059454]
[1733089901322,2.483058,97862.0,97850.0,0.00059454]
[1733089901532,2.44457716,97861.0,97850.0,0.00059454]
[1733089901769,2.292127,97860.0,97850.0,0.00059454]
[1733089902011,2.34893616,97859.0,97850.0,0.00059454]
[1733089902209,2.363133,97858.0,97850.0,0.00059454]
[1733089902427,0.0458,97856.0,97850.0,0.00059454]
[1733089902640,1.87632716,97855.0,97850.0,0.00059454]
[1733089902852,0.00066116,97855.0,97850.0,0.00059454]
[1733089903311,0.719153,97854.0,97851.0,0.001]
[1733089903522,0.0458,97852.0,97851.0,0.001]
[1733089903753,0.98563216,97852.0,97850.0,0.00059454]
[1733089903992,0.89129716,97851.0,97850.0,0.00459454]
[1733089904203,0.890636,97851.0,97850.0,0.00059454]